fUSD/lending_fUSD_20250301
["ID","MTS","AMOUNT","RATE_DAILY","PERIOD"]
[354938895,1740833473044,-1871.38,0.00027945,2]
[354938896,1740833473053,-500.0,0.00027945,2]
[354938897,1740833473063,-733.49,0.00027945,2]
[354938898,1740833473074,-500.0,0.00027945,2]
[354938899,1740833473084,-618.64,0.00027945,2]
[354938900,1740833473095,-720.36,0.00027945,2]
[354938901,1740833473105,-13748.82,0.00027945,2]
[354938902,1740833473114,-1027.58,0.00027945,2]
[354938903,1740833473125,-1295.06,0.00027945,2]
[354938904,1740833473135,-2112.95,0.00027945,2]
[354938905,1740833473145,-500.0,0.00027945,2]
[354938906,1740833473154,-1419.67,0.00027945,2]
[354938907,1740833473164,-534.80800237,0.00027945,2]
[354938908,1740833473174,-719.57,0.00027945,2]
[354938909,1740833473183,-4122.6,0.00027945,2]
[354938910,1740833473194,-500.0,0.00027945,2]
[354938911,1740833473204,-500.0,0.00027945,2]
[354938912,1740833473214,-601.27,0.00027945,120]
[354938913,1740833473224,-2122.69,0.00027945,2]
[354938914,1740833473233,-500.0,0.00027945,2]
[354938915,1740833473244,-500.0,0.00027945,2]
[354938916,1740833473253,-606.84,0.00027945,2]
[354938917,1740833473262,-1502.08,0.00027945,2]
[354938918,1740833473272,-623.01,0.00027945,2]
[354938919,1740833473281,-238.53586579,0.00027945,2]
[354938920,1740833473291,-500.0,0.00027945,2]
[354938921,1740833473300,-500.0,0.00027945,2]
[354938922,1740833473310,-1568.63,0.00027945,2]
[354938923,1740833473319,-647.52857242,0.00027945,2]
[354938924,1740833473329,-500.0,0.00027945,2]
[354938925,1740833473339,-500.0,0.00027945,2]
[354938926,1740833473348,-2130.49,0.00027945,2]
[354938927,1740833473358,-999.1,0.00027945,2]
[354938928,1740833473367,-4276.1651245,0.00027962,2]
[354938929,1740833473377,-1095.8585343,0.00027962,2]
[354938930,1740833473387,-1002.0,0.00027972,2]
[354938931,1740833473396,-1084.0,0.00027972,2]
[354938932,1740833473405,-4100.5664365,0.00027981,2]
[354938933,1740833473415,-1050.8576245,0.00027981,2]
[354938934,1740833473425,-500.0,0.00027999,2]
[354938935,1740833473434,-500.0,0.00027999,2]
[354938936,1740833473444,-585.66273115,0.00027999,2]
[354938937,1740833473454,-94459.92259008,0.00028,13]
[354938938,1740833473981,-4598.48520707,0.00028,13]
[354938939,1740833474711,-1112.0,0.00020266,2]
[354938940,1740833474722,-367.116,0.00023266,2]
[354938941,1740833474732,-500.0,0.00027397,2]
[354938942,1740833474742,-500.0,0.00027671,2]
[354938943,1740833474752,-941.59220285,0.00028,13]
[354938944,1740833474762,-1002.0,0.00028,2]
[354938945,1740833474772,-1084.0,0.00028,2]
[354938946,1740833474782,-300474.02098473,0.00028,2]
[354938947,1740833476581,-500.0,0.00027945,2]
[354938948,1740833476598,-2615.65172122,0.00028,2]
[354938949,1740833477777,-796.86055932,0.00015615,2]
[354938950,1740833539037,250.0,0.00013,2]
[354938966,1740834543770,150.0,0.0002379,30]
[354938967,1740834546518,150.0,0.0002379,30]
[354938968,1740834547863,150.0,0.0002379,30]
[354938970,1740834549460,150.0,0.0002379,30]
[354938971,1740834554294,835.98407143,0.0002379,30]
[354938972,1740834557161,503.20531679,0.0002379,30]
[354938973,1740834558476,3490.05045603,0.0002379,30]
[354938974,1740834560046,614.98430437,0.0002379,30]
[354938982,1740834631814,-300.0,0.00015,2]
[354938983,1740834631824,-150.0,0.0001525,2]
[354938984,1740834631834,-150.0,0.000165,2]
[354938985,1740834631844,-150.0,0.000165,2]
[354938986,1740834631854,-350.0,0.00017,2]
[354938987,1740834631865,-913.93513231,0.00017,2]
[354938988,1740834631875,-400.0,0.00019,2]
[354938989,1740834631884,-180.7877298,0.00019,2]
[354938990,1740834631894,-2833.0,0.000202,2]
[354938991,1740834631903,-175.419,0.00020266,2]
[354938992,1740834631914,-450.0,0.00021,2]
[354938993,1740834631925,-318.0,0.0002164,2]
[354938994,1740834631935,-162.83,0.00021918,2]
[354938995,1740834631945,-6122.22,0.00022562,2]
[354938996,1740834631955,-267.08,0.00022562,2]
[354938997,1740834631964,-150.99,0.00022562,2]
[354938998,1740834631974,-999.99,0.00022562,2]
[354938999,1740834631984,-318.0,0.0002266,2]
[354939000,1740834631994,-500.0,0.00023,2]
[354939001,1740834632003,-150.0,0.00023266,2]
[354939002,1740834632014,-318.0,0.0002368,2]
[354939003,1740834632024,-2024.82252049,0.000239,3]
[354939004,1740834632033,-200.0,0.00024236,2]
[354939005,1740834632043,-787.61,0.00024383,2]
[354939006,1740834632053,-250.0,0.00024502,2]
[354939007,1740834632063,-5.28786332,0.00024624,3]
[354939008,1740834632083,-1231.85132041,0.00024624,3]
[354939009,1740834632095,-424.87953154,0.00024624,3]
[354939010,1740834632119,-362.80380498,0.00024624,3]
[354939011,1740834632128,-312.49619502,0.000247,2]
[354939012,1740834632153,-5.50380498,0.000247,2]
[354939013,1740834632162,-175.56,0.00025,2]
[354939014,1740834632173,-722.63,0.00025017,2]
[354939015,1740834632184,-174.78,0.00025117,2]
[354939016,1740834632194,-2024.82252025,0.00025348,4]
[354939017,1740834632203,-318.0,0.0002572,2]
[354939018,1740834632213,-1130.75848125,0.00026072,4]
[354939019,1740834632238,-894.064039,0.00026072,4]
[354939021,1740834632247,-468.955961,0.00026182,2]
[354939023,1740834632259,-4911.084039,0.00026182,2]
[354939024,1740834632269,-582.51660474,0.0002639,2]
[354939025,1740834632279,-582.51660474,0.0002639,2]
[354939026,1740834632289,-1283.62,0.0002639,13]
[354939028,1740834632299,-7010.00755032,0.0002649,2]
[354939057,1740834637770,-1112.0,0.00021566,2]
[354939058,1740834637780,-367.116,0.00024566,2]
[354939059,1740834637790,-16889.99244968,0.0002649,2]
[354939060,1740834637799,-318.0,0.0002674,2]
[354939061,1740834637809,-2024.82252025,0.00026797,4]
[354939062,1740834637818,-150.0,0.00026935,7]
[354939063,1740834637827,-722.63,0.00027281,2]
[354939064,1740834637837,-333.20262983,0.00027297,2]
[354939066,1740834638031,-400.77287017,0.00027297,2]
[354939068,1740834638042,-500.0,0.00027297,2]
[354939069,1740834638052,-1000.0,0.00027297,2]
[354939070,1740834638061,-2185.2607,0.00027297,2]
[354939071,1740834638071,-7788.1043,0.00027297,2]
[354939072,1740834638085,-2465.8065,0.00027297,2]
[354939073,1740834638094,-318.06763194,0.00027297,2]
[354939074,1740834638104,-351.24389606,0.00027373,2]
[354939075,1740834638114,-294.24,0.00027387,2]
[354939076,1740834638123,-172.99247145,0.00027396,2]
[354939077,1740834638133,-512.49101547,0.00027397,2]
[354939078,1740834638143,-266.77204925,0.00027397,2]
[354939079,1740834638152,-500.38508115,0.00027397,2]
[354939080,1740834638161,-504.68252331,0.00027397,2]
[354939081,1740834638171,-500.0,0.00027397,2]
[354939082,1740834638182,-522.93038862,0.00027397,2]
[354939083,1740834638191,-500.0,0.00027397,2]
[354939084,1740834638201,-1213.58,0.00027397,2]
[354939085,1740834638211,-526.56457216,0.00027397,2]
[354939086,1740834638221,-202.20499075,0.00027397,2]
[354939087,1740834638231,-500.0,0.00027397,2]
[354939088,1740834638241,-500.0,0.00027397,2]
[354939089,1740834638251,-500.0,0.00027397,2]
[354939090,1740834638261,-215.24660598,0.00027397,2]
[354939091,1740834638271,-1122.59,0.00027397,2]
[354939092,1740834638281,-513.8383536,0.00027397,2]
[354939093,1740834638291,-500.0,0.00027397,2]
[354939094,1740834638301,-500.0,0.00027397,2]
[354939096,1740834638311,-1050.17,0.00027397,2]
[354939098,1740834638321,-567.52,0.00027397,2]
[354939099,1740834638331,-500.0,0.00027397,2]
[354939100,1740834638341,-500.0,0.00027397,2]
[354939101,1740834638351,-1262.3,0.00027397,2]
[354939102,1740834638361,-500.0,0.00027397,2]
[354939103,1740834638371,-500.0,0.00027397,2]
[354939104,1740834638381,-1485.11,0.00027397,2]
[354939105,1740834638391,-500.0,0.00027397,2]
[354939106,1740834638401,-500.0,0.00027397,2]
[354939107,1740834638411,-500.0,0.00027397,2]
[354939108,1740834638425,-500.0,0.00027397,2]
[354939109,1740834638435,-722.89,0.00027397,2]
[354939110,1740834638445,-1069.95,0.00027397,2]
[354939111,1740834638455,-869.72,0.00027397,2]
[354939112,1740834638465,-500.0,0.00027397,2]
[354939113,1740834638475,-523.88246286,0.00027397,2]
[354939114,1740834638485,-500.0,0.00027397,2]
[354939115,1740834638495,-512.14459939,0.00027397,2]
[354939116,1740834638505,-508.01201702,0.00027397,2]
[354939117,1740834638515,-700.98,0.00027397,2]
[354939118,1740834638524,-500.0,0.00027397,2]
[354939119,1740834638534,-500.0,0.00027397,2]
[354939120,1740834638544,-500.0,0.00027397,2]
[354939121,1740834638555,-848.06,0.00027397,2]
[354939122,1740834638564,-604.77632149,0.00027397,2]
[354939123,1740834638574,-500.0,0.00027397,2]
[354939124,1740834638584,-275.68908983,0.00027397,2]
[354939125,1740834638594,-500.0,0.00027397,2]
[354939126,1740834638604,-801.09,0.00027397,2]
[354939127,1740834638614,-500.0,0.00027397,2]
[354939128,1740834638623,-683.5,0.00027397,2]
[354939129,1740834638633,-500.0,0.00027397,2]
[354939130,1740834638643,-500.0,0.00027397,2]
[354939131,1740834638653,-500.0,0.00027397,2]
[354939132,1740834638663,-532.00170068,0.00027397,2]
[354939133,1740834638673,-500.0,0.00027397,2]
[354939134,1740834638684,-500.0,0.00027397,2]
[354939135,1740834638694,-500.0,0.00027397,2]
[354939136,1740834638704,-500.0,0.00027397,2]
[354939137,1740834638714,-1163.18,0.00027397,2]
[354939138,1740834638723,-500.0,0.00027397,2]
[354939139,1740834638734,-523.91830745,0.00027397,2]
[354939140,1740834638743,-937.84,0.00027397,2]
[354939141,1740834638753,-500.0,0.00027397,2]
[354939142,1740834638763,-500.0,0.00027397,2]
[354939143,1740834638772,-500.0,0.00027397,2]
[354939144,1740834638782,-788.5,0.00027397,2]
[354939145,1740834638792,-500.0,0.00027397,2]
[354939146,1740834638801,-500.0,0.00027397,2]
[354939147,1740834638811,-500.0,0.00027397,2]
[354939148,1740834638821,-500.0,0.00027397,2]
[354939149,1740834638830,-686.73,0.00027397,2]
[354939150,1740834638840,-1061.0,0.00027397,2]
[354939151,1740834638849,-500.0,0.00027397,2]
[354939152,1740834638859,-500.0,0.00027397,2]
[354939153,1740834638869,-2997.225029,0.00027397,2]
[354939154,1740834638878,-824.97,0.00027397,2]
[354939155,1740834638888,-385.89702936,0.00027397,2]
[354939156,1740834638897,-1284.68,0.00027397,2]
[354939157,1740834638907,-500.0,0.00027397,2]
[354939158,1740834638916,-500.0,0.00027397,2]
[354939159,1740834638927,-3886.106056,0.00027397,2]
[354939160,1740834638936,-689.77,0.00027397,2]
[354939161,1740834638946,-143.90283484,0.00027397,2]
[354939168,1740834639811,-356.09716516,0.00027397,2]
[354939169,1740834639821,-500.0,0.00027397,2]
[354939170,1740834639831,-500.0,0.00027397,2]
[354939171,1740834639841,-153.088695,0.00027397,2]
[354939172,1740834640097,-1990.13,0.00027397,2]
[354939173,1740834640108,-500.0,0.00027397,2]
[354939174,1740834640118,-500.0,0.00027397,2]
[354939175,1740834640127,-500.0,0.00027397,2]
[354939176,1740834640137,-150.369306,0.00027397,2]
[354939177,1740834640147,-500.0,0.00027397,2]
[354939178,1740834640156,-500.0,0.00027397,2]
[354939179,1740834640165,-1174.07250963,0.00027397,2]
[354939180,1740834640178,-883.84749037,0.00027397,2]
[354939181,1740834640188,-500.0,0.00027397,2]
[354939182,1740834640198,-500.0,0.00027397,2]
[354939183,1740834640209,-500.0,0.00027397,2]
[354939184,1740834640227,-500.0,0.00027397,2]
[354939185,1740834640236,-500.0,0.00027397,2]
[354939186,1740834640246,-951.2,0.00027397,2]
[354939187,1740834640255,-500.0,0.00027397,2]
[354939188,1740834640265,-808.56,0.00027397,2]
[354939189,1740834640275,-500.0,0.00027397,2]
[354939190,1740834640285,-711.28,0.00027397,2]
[354939191,1740834640295,-719.43,0.00027397,2]
[354939192,1740834640305,-500.0,0.00027397,2]
[354939193,1740834640314,-526.75381996,0.00027397,2]
[354939194,1740834640324,-919.48,0.00027397,2]
[354939195,1740834640333,-668.21856611,0.00027397,2]
[354939196,1740834640346,-331.80143389,0.00027397,2]
[354939197,1740834640356,-644.54305717,0.00027397,2]
[354939198,1740834640365,-248.9442626,0.00027397,2]
[354939199,1740834640380,-740.1857374,0.00027397,2]
[354939200,1740834640390,-110.5042626,0.00027397,2]
[354939201,1740834640402,-389.4957374,0.00027397,2]
[354939202,1740834640413,-500.0,0.00027397,2]
[354939203,1740834640425,-500.0,0.00027397,2]
[354939204,1740834640435,-629.62,0.00027397,2]
[354939205,1740834640444,-519.25697053,0.00027397,2]
[354939206,1740834640453,-500.0,0.00027397,2]
[354939207,1740834640465,-440.05614261,0.00027397,2]
[354939208,1740834640480,-335.12385739,0.00027397,2]
[354939209,1740834640490,-156.657896,0.00027397,2]
[354939210,1740834640501,-500.0,0.00027397,2]
[354939211,1740834640512,-517.92222698,0.00027397,2]
[354939212,1740834640521,-1048.65,0.00027397,2]
[354939213,1740834640531,-455.33137295,0.00027397,2]
[354939214,1740834640541,-500.0,0.00027397,2]
[354939215,1740834640550,-500.0,0.00027397,2]
[354939216,1740834640560,-1024.58,0.00027397,2]
[354939217,1740834640570,-500.0,0.00027397,2]
[354939218,1740834640580,-520.80799377,0.00027397,2]
[354939219,1740834640589,-500.0,0.00027397,2]
[354939220,1740834640599,-231.9831472,0.00027397,2]
[354939221,1740834640608,-1739.04,0.00027397,2]
[354939222,1740834640617,-500.0,0.00027397,2]
[354939223,1740834640627,-528.38485159,0.00027397,2]
[354939224,1740834640636,-901.37,0.00027397,2]
[354939225,1740834640646,-500.0,0.00027397,2]
[354939226,1740834640655,-789.7,0.00027397,2]
[354939227,1740834640665,-500.0,0.00027397,2]
[354939228,1740834640674,-500.0,0.00027397,2]
[354939229,1740834640684,-500.0,0.00027397,2]
[354939230,1740834640694,-1709.34,0.00027397,2]
[354939231,1740834640703,-500.0,0.00027397,2]
[354939232,1740834640712,-3413.35,0.00027397,2]
[354939233,1740834640722,-936.71,0.00027397,2]
[354939234,1740834640732,-500.0,0.00027397,2]
[354939235,1740834640741,-1008.85,0.00027397,2]
[354939236,1740834640750,-500.0,0.00027397,2]
[354939237,1740834640760,-1016.85,0.00027397,2]
[354939238,1740834640769,-500.0,0.00027397,2]
[354939239,1740834640779,-500.0,0.00027397,2]
[354939240,1740834640789,-874.21,0.00027397,2]
[354939241,1740834640799,-500.0,0.00027397,2]
[354939242,1740834640808,-814.79,0.00027397,2]
[354939243,1740834640818,-500.0,0.00027397,2]
[354939244,1740834640827,-500.0,0.00027397,2]
[354939245,1740834640836,-513.82661195,0.00027397,2]
[354939246,1740834640846,-500.0,0.00027397,2]
[354939247,1740834640855,-500.0,0.00027397,2]
[354939248,1740834640865,-539.44874281,0.00027397,2]
[354939249,1740834640875,-500.0,0.00027397,2]
[354939250,1740834640884,-767.68,0.00027397,2]
[354939251,1740834640894,-761.26,0.00027397,2]
[354939252,1740834640903,-500.0,0.00027397,2]
[354939253,1740834640913,-500.0,0.00027397,2]
[354939254,1740834640922,-500.0,0.00027397,2]
[354939255,1740834640933,-500.0,0.00027397,2]
[354939256,1740834640943,-500.0,0.00027397,2]
[354939257,1740834640953,-1189.51,0.00027397,2]
[354939258,1740834640963,-806.21,0.00027397,2]
[354939259,1740834640972,-500.0,0.00027397,7]
[354939260,1740834640981,-500.0,0.00027397,2]
[354939261,1740834640991,-515.68626405,0.00027397,2]
[354939262,1740834641001,-1388.44,0.00027397,2]
[354939263,1740834641010,-965.1,0.00027397,2]
[354939264,1740834641020,-500.0,0.00027397,2]
[354939265,1740834641029,-500.0,0.00027397,2]
[354939266,1740834641039,-1206.69,0.00027397,2]
[354939267,1740834641048,-500.0,0.00027397,2]
[354939268,1740834641057,-830.02,0.00027397,2]
[354939269,1740834641067,-500.0,0.00027397,2]
[354939270,1740834641077,-500.0,0.00027397,2]
[354939271,1740834641087,-946.25,0.00027397,2]
[354939272,1740834641096,-500.0,0.00027397,2]
[354939273,1740834641106,-522.02,0.00027397,2]
[354939274,1740834641116,-769.61,0.00027397,2]
[354939275,1740834641126,-1646.09,0.00027397,2]
[354939276,1740834641135,-500.0,0.00027397,2]
[354939277,1740834641146,-500.0,0.00027397,2]
[354939278,1740834641156,-500.0,0.00027397,2]
[354939279,1740834641165,-1363.24,0.00027397,2]
[354939280,1740834641175,-515.07282617,0.00027397,2]
[354939281,1740834641185,-500.0,0.00027397,2]
[354939282,1740834641196,-500.0,0.00027397,2]
[354939283,1740834641206,-500.0,0.00027397,2]
[354939284,1740834641216,-500.0,0.00027397,2]
[354939285,1740834641227,-500.0,0.00027397,2]
[354939286,1740834641237,-500.0,0.00027397,2]
[354939287,1740834641246,-500.0,0.00027397,2]
[354939288,1740834641257,-305.00346223,0.00027397,2]
[354939289,1740834641267,-1095.8,0.00027397,2]
[354939290,1740834641277,-500.0,0.00027397,2]
[354939291,1740834641287,-2178.94,0.00027397,2]
[354939292,1740834641298,-500.0,0.00027397,2]
[354939293,1740834641308,-500.0,0.00027397,2]
[354939294,1740834641317,-1975.15,0.00027397,2]
[354939295,1740834641327,-500.0,0.00027397,2]
[354939296,1740834641337,-1760.23,0.00027397,2]
[354939297,1740834641347,-944.31,0.00027397,2]
[354939298,1740834641357,-943.74,0.00027397,2]
[354939299,1740834641367,-500.0,0.00027397,2]
[354939300,1740834641376,-1189.29,0.00027397,2]
[354939301,1740834641386,-532.32453963,0.00027397,2]
[354939302,1740834641396,-500.0,0.00027397,2]
[354939303,1740834641407,-500.0,0.00027397,2]
[354939304,1740834641419,-500.0,0.00027397,2]
[354939305,1740834641433,-985.54,0.00027397,2]
[354939306,1740834641443,-500.0,0.00027397,2]
[354939307,1740834641453,-500.0,0.00027397,2]
[354939308,1740834641465,-500.0,0.00027397,2]
[354939309,1740834641475,-1418.85,0.00027397,2]
[354939310,1740834641485,-513.58582003,0.00027397,2]
[354939311,1740834641495,-588.25,0.00027397,2]
[354939312,1740834641507,-1009.4,0.00027397,2]
[354939313,1740834641518,-500.0,0.00027397,2]
[354939314,1740834641528,-500.0,0.00027397,2]
[354939315,1740834641539,-523.74024005,0.00027397,2]
[354939316,1740834641550,-500.0,0.00027397,2]
[354939317,1740834641560,-500.0,0.00027397,2]
[354939318,1740834641570,-1288.16,0.00027397,2]
[354939319,1740834641580,-854.86,0.00027397,2]
[354939320,1740834641591,-500.0,0.00027397,2]
[354939321,1740834641601,-289.46912,0.00027397,2]
[354939322,1740834641610,-500.0,0.00027397,2]
[354939323,1740834641620,-500.0,0.00027397,2]
[354939324,1740834641630,-1462.16,0.00027397,2]
[354939325,1740834641641,-431.29279487,0.00027397,2]
[354939326,1740834641650,-1141.55,0.00027397,2]
[354939327,1740834641660,-506.75433511,0.00027397,2]
[354939328,1740834641669,-500.0,0.00027397,2]
[354939329,1740834641680,-1043.64,0.00027397,2]
[354939330,1740834641690,-500.0,0.00027397,2]
[354939331,1740834641700,-500.0,0.00027397,2]
[354939332,1740834641710,-500.0,0.00027397,2]
[354939333,1740834641719,-964.26,0.00027397,2]
[354939334,1740834641730,-500.0,0.00027397,2]
[354939335,1740834641739,-500.0,0.00027397,2]
[354939336,1740834641749,-636.98,0.00027397,2]
[354939337,1740834641758,-500.0,0.00027397,2]
[354939338,1740834641768,-500.0,0.00027397,2]
[354939339,1740834641778,-1400.65,0.00027397,2]
[354939340,1740834641788,-1750.66,0.00027397,2]
[354939341,1740834641797,-500.0,0.00027397,2]
[354939342,1740834641807,-837.71,0.00027397,2]
[354939343,1740834641817,-1143.63,0.00027397,2]
[354939344,1740834641827,-500.0,0.00027397,2]
[354939345,1740834641838,-2121.89,0.00027397,2]
[354939346,1740834641848,-774.17,0.00027397,2]
[354939347,1740834641858,-500.0,0.00027397,2]
[354939348,1740834641868,-742.2,0.00027397,2]
[354939349,1740834641880,-500.0,0.00027397,2]
[354939350,1740834641890,-505.46203294,0.00027397,2]
[354939351,1740834641899,-1178.55,0.00027397,2]
[354939352,1740834641910,-500.0,0.00027397,2]
[354939353,1740834641920,-500.0,0.00027397,2]
[354939354,1740834641931,-1213.11,0.00027397,2]
[354939355,1740834641941,-1083.82,0.00027397,2]
[354939356,1740834641951,-500.0,0.00027397,2]
[354939357,1740834641961,-500.0,0.00027397,2]
[354939358,1740834641970,-500.0,0.00027397,2]
[354939359,1740834641980,-500.0,0.00027397,2]
[354939360,1740834641990,-500.0,0.00027397,2]
[354939361,1740834642000,-853.04,0.00027397,2]
[354939362,1740834642010,-500.0,0.00027397,2]
[354939363,1740834642020,-500.0,0.00027397,2]
[354939364,1740834642030,-1330.86,0.00027397,2]
[354939365,1740834642040,-682.29,0.00027397,2]
[354939366,1740834642049,-2015.15,0.00027397,2]
[354939367,1740834642059,-500.0,0.00027397,2]
[354939368,1740834642069,-500.0,0.00027397,2]
[354939369,1740834642079,-500.0,0.00027397,2]
[354939370,1740834642089,-724.75,0.00027397,2]
[354939371,1740834642098,-1369.66,0.00027397,2]
[354939372,1740834642108,-870.05,0.00027397,2]
[354939373,1740834642118,-721.61,0.00027397,2]
[354939374,1740834642128,-578.97,0.00027397,2]
[354939375,1740834642138,-927.57,0.00027397,2]
[354939376,1740834642147,-789.49,0.00027397,2]
[354939377,1740834642157,-500.0,0.00027397,2]
[354939378,1740834642167,-500.0,0.00027397,2]
[354939379,1740834642177,-1171.54,0.00027397,2]
[354939380,1740834642187,-300.0,0.00027397,2]
[354939381,1740834642196,-500.0,0.00027397,2]
[354939382,1740834642206,-500.0,0.00027397,2]
[354939383,1740834642215,-500.0,0.00027397,2]
[354939384,1740834642225,-600.0,0.00027397,2]
[354939385,1740834642235,-616.57,0.00027397,2]
[354939386,1740834642245,-1341.12,0.00027397,2]
[354939387,1740834642255,-500.0,0.00027397,2]
[354939388,1740834642264,-1118.85,0.00027397,2]
[354939389,1740834642274,-500.0,0.00027397,2]
[354939390,1740834642284,-999.43,0.00027397,2]
[354939391,1740834642293,-500.0,0.00027397,2]
[354939392,1740834642303,-500.0,0.00027397,2]
[354939393,1740834642313,-500.0,0.00027397,2]
[354939394,1740834642323,-718.69,0.00027397,2]
[354939395,1740834642332,-1064.1,0.00027397,2]
[354939396,1740834642342,-918.53,0.00027397,2]
[354939397,1740834642351,-500.0,0.00027397,2]
[354939398,1740834642361,-1219.0,0.00027397,2]
[354939399,1740834642371,-568.65,0.00027397,2]
[354939400,1740834642380,-500.0,0.00027397,2]
[354939401,1740834642390,-712.25,0.00027397,2]
[354939402,1740834642399,-500.0,0.00027397,2]
[354939403,1740834642408,-950.6,0.00027397,2]
[354939404,1740834642422,-1369.27,0.00027397,2]
[354939405,1740834642432,-500.0,0.00027397,2]
[354939406,1740834642442,-1133.18,0.00027397,2]
[354939407,1740834642452,-1801.85,0.00027397,2]
[354939408,1740834642462,-500.0,0.00027397,2]
[354939409,1740834642473,-500.0,0.00027397,2]
[354939410,1740834642482,-590.63,0.00027397,2]
[354939411,1740834642495,-500.0,0.00027397,2]
[354939412,1740834642505,-500.0,0.00027397,2]
[354939413,1740834642515,-643.48,0.00027397,2]
[354939414,1740834642524,-947.99,0.00027397,2]
[354939415,1740834642534,-500.0,0.00027397,2]
[354939416,1740834642543,-500.0,0.00027397,2]
[354939417,1740834642553,-500.0,0.00027397,2]
[354939418,1740834642562,-259.92276111,0.00027397,2]
[354939419,1740834642572,-500.0,0.00027397,2]
[354939420,1740834642583,-1757.89,0.00027397,2]
[354939421,1740834642592,-575.15,0.00027397,2]
[354939422,1740834642601,-500.0,0.00027397,2]
[354939423,1740834642611,-1253.85,0.00027397,2]
[354939426,1740834642620,-500.0,0.00027397,2]
[354939429,1740834642630,-500.0,0.00027397,2]
[354939432,1740834642639,-500.0,0.00027397,2]
[354939435,1740834642649,-500.0,0.00027397,2]
[354939437,1740834642658,-634.91,0.00027397,2]
[354939439,1740834642668,-500.0,0.00027397,2]
[354939442,1740834642678,-500.0,0.00027397,2]
[354939444,1740834642687,-653.7,0.00027397,2]
[354939445,1740834642697,-500.0,0.00027397,2]
[354939446,1740834642706,-639.77,0.00027397,2]
[354939447,1740834642716,-865.21,0.00027397,2]
[354939448,1740834642725,-500.0,0.00027397,2]
[354939449,1740834642736,-899.14,0.00027397,2]
[354939450,1740834642745,-500.0,0.00027397,2]
[354939452,1740834642755,-859.4,0.00027397,2]
[354939454,1740834642764,-1037.59,0.00027397,2]
[354939456,1740834642773,-500.0,0.00027397,2]
[354939457,1740834642783,-500.0,0.00027397,2]
[354939458,1740834642791,-2026.56,0.00027397,2]
[354939459,1740834642801,-716.68,0.00027397,2]
[354939460,1740834642811,-500.0,0.00027397,2]
[354939461,1740834642820,-630.32,0.00027397,2]
[354939462,1740834642830,-500.0,0.00027397,2]
[354939463,1740834642839,-1165.47,0.00027397,2]
[354939464,1740834642849,-500.0,0.00027397,2]
[354939465,1740834642858,-500.0,0.00027397,2]
[354939466,1740834642867,-500.0,0.00027397,2]
[354939467,1740834642876,-500.0,0.00027397,2]
[354939468,1740834642886,-500.0,0.00027397,2]
[354939469,1740834642895,-1385.21,0.00027397,2]
[354939470,1740834642904,-500.0,0.00027397,2]
[354939471,1740834642914,-500.0,0.00027397,2]
[354939472,1740834642923,-500.0,0.00027397,2]
[354939473,1740834642933,-500.0,0.00027397,2]
[354939474,1740834642943,-523.70100429,0.00027397,2]